fUST/lending_fUST_20250719
["ID","MTS","AMOUNT","RATE_DAILY","PERIOD"]
[373211512,1752907854196,-460.0,0.00018356,2]
[373211513,1752907854205,-469.08121383,0.00018356,2]
[373211515,1752907854215,-529.8,0.00018356,2]
[373211517,1752907854228,-1547.66,0.00018356,2]
[373211519,1752907854237,-520.08,0.00018356,2]
[373211521,1752907854246,-2037.7,0.00018356,2]
[373211523,1752907854256,-466.92045079,0.00018356,2]
[373211525,1752907854266,-2781.98,0.00018356,2]
[373211527,1752907854275,-460.0,0.00018356,2]
[373211530,1752907854285,-460.0,0.00018356,2]
[373211531,1752907854295,-258.82693295,0.00018356,2]
[373211534,1752907854305,-1565.73,0.00018356,2]
[373211535,1752907854315,-460.0,0.00018356,2]
[373211537,1752907854324,-976.4,0.00018356,2]
[373211539,1752907854333,-502.28091123,0.0001836,2]
[373211541,1752907854343,-151.0,0.000184,2]
[373211543,1752907854352,-5224.8904645,0.00018452,2]
[373211545,1752907854361,-460.0,0.00018528,2]
[373211548,1752907854371,-460.0,0.00018528,2]
[373211550,1752907854380,-460.0,0.00018528,2]
[373211552,1752907854391,-460.0,0.00018528,2]
[373211553,1752907854401,-500.0,0.00018629,2]
[373211555,1752907854410,-441.0,0.0001863,2]
[373211557,1752907854420,-460.0,0.0001863,2]
[373211560,1752907854430,-460.0,0.0001863,2]
[373211562,1752907854440,-924.29,0.0001863,2]
[373211564,1752907854449,-460.0,0.0001863,2]
[373211566,1752907854459,-475.19,0.0001863,2]
[373211568,1752907854468,-460.0,0.0001863,2]
[373211569,1752907854479,-460.0,0.0001863,2]
[373211571,1752907854488,-460.0,0.0001863,2]
[373211574,1752907854498,-460.0,0.0001863,2]
[373211576,1752907854508,-460.0,0.0001863,2]
[373211578,1752907854517,-460.0,0.0001863,2]
[373211579,1752907854527,-639.44,0.0001863,2]
[373211581,1752907854536,-460.0,0.0001863,2]
[373211584,1752907854546,-460.0,0.0001863,2]
[373211585,1752907854556,-460.0,0.0001863,2]
[373211587,1752907854565,-460.0,0.0001863,2]
[373211589,1752907854575,-460.0,0.0001863,2]
[373211591,1752907854585,-460.0,0.0001863,2]
[373211593,1752907854595,-460.0,0.0001863,2]
[373211595,1752907854604,-460.0,0.0001863,2]
[373211597,1752907854614,-460.0,0.0001863,2]
[373211599,1752907854624,-460.0,0.0001863,2]
[373211601,1752907854634,-460.0,0.0001863,2]
[373211603,1752907854643,-460.0,0.0001863,2]
[373211605,1752907854653,-460.0,0.0001863,2]
[373211607,1752907854663,-460.0,0.0001863,2]
[373211610,1752907854672,-460.0,0.0001863,2]
[373211612,1752907854682,-460.0,0.0001863,2]
[373211614,1752907854692,-575.94,0.0001863,2]
[373211615,1752907854702,-460.0,0.0001863,2]
[373211617,1752907854711,-460.0,0.0001863,2]
[373211619,1752907854720,-460.0,0.0001863,2]
[373211622,1752907854730,-460.0,0.0001863,2]
[373211624,1752907854739,-460.0,0.0001863,2]
[373211625,1752907854749,-460.0,0.0001863,2]
[373211627,1752907854759,-508.05,0.0001863,2]
[373211630,1752907854768,-3168.93,0.0001863,2]
[373211632,1752907854777,-3148.5,0.0001863,2]
[373211633,1752907854787,-629.76,0.0001863,2]
[373211636,1752907854797,-499.24,0.0001863,2]
[373211638,1752907854806,-792.23,0.0001863,2]
[373211640,1752907854816,-460.0,0.0001863,2]
[373211641,1752907854825,-588.5,0.0001863,2]
[373211643,1752907854835,-460.0,0.0001863,2]
[373211645,1752907854844,-819.5,0.0001863,2]
[373211648,1752907854854,-3198.65,0.0001863,2]
[373211649,1752907854863,-460.0,0.0001863,2]
[373211652,1752907854874,-259.01674864,0.0001863,2]
[373211654,1752907854884,-1266.66,0.0001863,2]
[373211656,1752907854893,-1848.02,0.0001863,2]
[373211658,1752907854903,-579.8,0.0001863,2]
[373211660,1752907854913,-630.59,0.0001863,2]
[373211662,1752907854922,-2194.67,0.0001863,2]
[373211664,1752907854931,-460.0,0.0001863,2]
[373211666,1752907854941,-460.0,0.0001863,2]
[373211668,1752907854951,-7435.29,0.0001863,2]
[373211670,1752907854960,-460.0,0.0001863,2]
[373211672,1752907854970,-1136.64,0.0001863,2]
[373211674,1752907854979,-460.0,0.0001863,2]
[373211676,1752907854989,-460.0,0.0001863,2]
[373211678,1752907854998,-460.0,0.0001863,2]
[373211680,1752907855009,-761.71,0.0001863,2]
[373211682,1752907855018,-684.42,0.0001863,2]
[373211684,1752907855028,-460.0,0.0001863,2]
[373211686,1752907855037,-460.0,0.0001863,2]
[373211688,1752907855047,-460.0,0.0001863,2]
[373211690,1752907855057,-727.96,0.0001863,2]
[373211692,1752907855066,-460.0,0.0001863,2]
[373211694,1752907855075,-705.88,0.0001863,2]
[373211696,1752907855085,-460.0,0.0001863,2]
[373211697,1752907855094,-1405.27,0.0001863,2]
[373211698,1752907855104,-2778.31,0.0001863,2]
[373211699,1752907855114,-677.34,0.0001863,2]
[373211700,1752907855124,-4383.08,0.0001863,2]
[373211701,1752907855133,-692.73,0.0001863,2]
[373211702,1752907855143,-300.93,0.0001863,2]
[373211704,1752907855153,-460.0,0.0001863,2]
[373211706,1752907855162,-460.0,0.0001863,2]
[373211708,1752907855171,-460.0,0.0001863,2]
[373211710,1752907855180,-347.84,0.0001863,2]
[373211712,1752907855189,-853.43,0.0001863,2]
[373211714,1752907855199,-561.34,0.0001863,2]
[373211716,1752907855209,-963.81,0.0001863,2]
[373211718,1752907855218,-460.0,0.0001863,2]
[373211720,1752907855233,-641.44,0.0001863,2]
[373211722,1752907855242,-460.0,0.0001863,2]
[373211724,1752907855253,-460.0,0.0001863,2]
[373211726,1752907855263,-529.8,0.0001863,2]
[373211728,1752907855273,-1547.66,0.0001863,2]
[373211730,1752907855283,-520.08,0.0001863,2]
[373211732,1752907855293,-2037.7,0.0001863,2]
[373211734,1752907855303,-2781.98,0.0001863,2]
[373211736,1752907855314,-460.0,0.0001863,2]
[373211738,1752907855323,-460.0,0.0001863,2]
[373211740,1752907855332,-1565.73,0.0001863,2]
[373211742,1752907855342,-460.0,0.0001863,2]
[373211744,1752907855352,-976.4,0.0001863,2]
[373211746,1752907855361,-17112.73595565,0.00018667,2]
[373211748,1752907855370,-1000.0,0.00018668,2]
[373211750,1752907855380,-1500.0,0.00018668,2]
[373211752,1752907855389,-1500.0,0.00018668,2]
[373211754,1752907855399,-1500.0,0.00018668,2]
[373211756,1752907855408,-5224.8904645,0.00018762,2]
[373211758,1752907855417,-151.0,0.000188,2]
[373211760,1752907855426,-460.0,0.00018802,2]
[373211762,1752907855436,-460.0,0.00018802,2]
[373211764,1752907855446,-460.0,0.00018802,2]
[373211766,1752907855455,-460.0,0.00018802,2]
[373211768,1752907855464,-1445.0674579,0.000189,2]
[373211770,1752907855474,-302.9394212,0.000189,2]
[373211772,1752907855484,-500.0,0.00018903,2]
[373211774,1752907855493,-441.0,0.00018904,2]
[373211776,1752907855504,-470.44713192,0.00018904,2]
[373211778,1752907855513,-460.0,0.00018904,2]
[373211780,1752907855523,-924.29,0.00018904,2]
[373211782,1752907855532,-460.0,0.00018904,2]
[373211784,1752907855541,-475.19,0.00018904,2]
[373211786,1752907855550,-460.0,0.00018904,2]
[373211788,1752907855559,-460.0,0.00018904,2]
[373211790,1752907855569,-460.0,0.00018904,2]
[373211792,1752907855578,-460.0,0.00018904,2]
[373211794,1752907855588,-460.0,0.00018904,2]
[373211796,1752907855597,-639.44,0.00018904,2]
[373211798,1752907855607,-460.0,0.00018904,2]
[373211801,1752907855618,-476.63075359,0.00018904,2]
[373211803,1752907855628,-460.0,0.00018904,2]
[373211805,1752907855637,-460.0,0.00018904,2]
[373211806,1752907855647,-460.0,0.00018904,2]
[373211808,1752907855656,-460.0,0.00018904,2]
[373211810,1752907855666,-460.0,0.00018904,2]
[373211812,1752907855676,-460.0,0.00018904,2]
[373211814,1752907855685,-460.0,0.00018904,2]
[373211816,1752907855695,-460.0,0.00018904,2]
[373211819,1752907855705,-460.0,0.00018904,2]
[373211820,1752907855714,-460.0,0.00018904,2]
[373211823,1752907855724,-460.0,0.00018904,2]
[373211825,1752907855734,-460.0,0.00018904,2]
[373211827,1752907855744,-460.0,0.00018904,2]
[373211829,1752907855754,-460.0,0.00018904,2]
[373211831,1752907855763,-575.94,0.00018904,2]
[373211833,1752907855773,-178.24103864,0.00018904,2]
[373211835,1752907855783,-460.0,0.00018904,2]
[373211837,1752907855793,-460.0,0.00018904,2]
[373211839,1752907855804,-439.75262341,0.00018904,2]
[373211841,1752907855814,-460.0,0.00018904,2]
[373211843,1752907855823,-460.0,0.00018904,2]
[373211845,1752907855832,-508.05,0.00018904,2]
[373211847,1752907855841,-3168.93,0.00018904,2]
[373211849,1752907855851,-3148.5,0.00018904,2]
[373211851,1752907855861,-629.76,0.00018904,2]
[373211853,1752907855871,-499.24,0.00018904,2]
[373211855,1752907855881,-792.23,0.00018904,2]
[373211866,1752907855978,-441.56,0.00018904,2]
[373211868,1752907855988,-588.5,0.00018904,2]
[373211870,1752907855997,-460.0,0.00018904,2]
[373211873,1752907856007,-819.5,0.00018904,2]
[373211875,1752907856016,-3198.65,0.00018904,2]
[373211876,1752907856026,-460.0,0.00018904,2]
[373211879,1752907856036,-1266.66,0.00018904,2]
[373211881,1752907856045,-1848.02,0.00018904,2]
[373211883,1752907856055,-579.8,0.00018904,2]
[373211885,1752907856064,-630.59,0.00018904,2]
[373211887,1752907856073,-460.0,0.00018904,2]
[373211889,1752907856083,-460.0,0.00018904,2]
[373211891,1752907856092,-2194.67,0.00018904,2]
[373211893,1752907856101,-460.0,0.00018904,2]
[373211895,1752907856110,-7435.29,0.00018904,2]
[373211897,1752907856119,-1136.64,0.00018904,2]
[373211899,1752907856128,-460.0,0.00018904,2]
[373211901,1752907856138,-460.0,0.00018904,2]
[373211903,1752907856147,-460.0,0.00018904,2]
[373211905,1752907856157,-761.71,0.00018904,2]
[373211907,1752907856166,-684.42,0.00018904,2]
[373211909,1752907856175,-460.0,0.00018904,2]
[373211911,1752907856185,-555.70430094,0.00018904,2]
[373211913,1752907856195,-367.00235644,0.00018904,2]
[373211915,1752907856204,-727.96,0.00018904,2]
[373211917,1752907856214,-460.0,0.00018904,2]
[373211919,1752907856225,-705.88,0.00018904,2]
[373211921,1752907856236,-460.0,0.00018904,2]
[373211923,1752907856245,-1405.27,0.00018904,2]
[373211925,1752907856256,-2778.31,0.00018904,2]
[373211927,1752907856266,-677.34,0.00018904,2]
[373211929,1752907856276,-4383.08,0.00018904,2]
[373211931,1752907856287,-692.73,0.00018904,2]
[373211933,1752907856297,-460.0,0.00018904,2]
[373211935,1752907856307,-460.0,0.00018904,2]
[373211937,1752907856317,-460.0,0.00018904,2]
[373211939,1752907856327,-853.43,0.00018904,2]
[373211941,1752907856337,-561.34,0.00018904,2]
[373211943,1752907856347,-963.81,0.00018904,2]
[373211945,1752907856356,-460.0,0.00018904,2]
[373211947,1752907856366,-641.44,0.00018904,2]
[373211949,1752907856376,-460.0,0.00018904,2]
[373211951,1752907856385,-460.0,0.00018904,2]
[373211953,1752907856395,-529.8,0.00018904,2]
[373211955,1752907856405,-1547.66,0.00018904,2]
[373211957,1752907856415,-520.08,0.00018904,2]
[373211959,1752907856425,-2037.7,0.00018904,2]
[373211961,1752907856434,-2781.98,0.00018904,2]
[373211963,1752907856444,-460.0,0.00018904,2]
[373211965,1752907856454,-418.18023803,0.00018904,2]
[373211967,1752907856464,-1565.73,0.00018904,2]
[373211969,1752907856475,-460.0,0.00018904,2]
[373211971,1752907856485,-976.4,0.00018904,2]
[373211973,1752907856494,-160.0,0.00018967,2]
[373211975,1752907856505,-451.0832682,0.0001898,2]
[373211977,1752907856515,-5224.8904645,0.00019072,2]
[373211979,1752907856525,-591.19851294,0.00019076,2]
[373211981,1752907856535,-460.0,0.00019076,2]
[373211983,1752907856544,-460.0,0.00019076,2]
[373211985,1752907856554,-460.0,0.00019076,2]
[373211987,1752907856563,-302.9394212,0.00019089,2]
[373211989,1752907856574,-151.0,0.000191,2]
[373211991,1752907856583,-1053.80709739,0.00019104,2]
[373211993,1752907856593,-500.0,0.00019177,2]
[373211995,1752907856603,-441.0,0.00019178,2]
[373211997,1752907856612,-460.0,0.00019178,2]
[373211999,1752907856621,-924.29,0.00019178,2]
[373212001,1752907856635,-460.0,0.00019178,2]
[373212003,1752907856645,-475.19,0.00019178,2]
[373212005,1752907856655,-229.87535684,0.00019178,2]
[373212007,1752907856665,-460.0,0.00019178,2]
[373212009,1752907856674,-460.0,0.00019178,2]
[373212012,1752907856684,-291.64908402,0.00019178,2]
[373212013,1752907856694,-460.0,0.00019178,2]
[373212016,1752907856705,-639.44,0.00019178,2]
[373212017,1752907856716,-460.0,0.00019178,2]
[373212020,1752907856726,-460.0,0.00019178,2]
[373212022,1752907856735,-460.0,0.00019178,2]
[373212024,1752907856744,-460.0,0.00019178,2]
[373212026,1752907856755,-460.0,0.00019178,2]
[373212028,1752907856766,-460.0,0.00019178,2]
[373212030,1752907856775,-460.0,0.00019178,2]
[373212032,1752907856785,-460.0,0.00019178,2]
[373212034,1752907856795,-460.0,0.00019178,2]
[373212036,1752907856804,-460.0,0.00019178,2]
[373212038,1752907856814,-460.0,0.00019178,2]
[373212040,1752907856823,-460.0,0.00019178,2]
[373212042,1752907856833,-532.33,0.00019178,2]
[373212044,1752907856842,-207.58924284,0.00019178,2]
[373212046,1752907856851,-575.94,0.00019178,2]
[373212048,1752907856861,-549.94,0.00019178,2]
[373212050,1752907856870,-460.0,0.00019178,2]
[373212052,1752907856880,-460.0,0.00019178,2]
[373212054,1752907856889,-508.05,0.00019178,2]
[373212056,1752907856899,-3168.93,0.00019178,2]
[373212058,1752907856910,-3148.5,0.00019178,2]
[373212060,1752907856919,-629.76,0.00019178,2]
[373212062,1752907856929,-792.23,0.00019178,2]
[373212064,1752907856939,-499.24,0.00019178,2]
[373212066,1752907856950,-588.5,0.00019178,2]
[373212068,1752907856960,-460.0,0.00019178,2]
[373212070,1752907856970,-819.5,0.00019178,2]
[373212072,1752907856980,-3198.65,0.00019178,2]
[373212074,1752907856990,-460.0,0.00019178,2]
[373212076,1752907856999,-1266.66,0.00019178,2]
[373212078,1752907857009,-1848.02,0.00019178,2]
[373212080,1752907857018,-579.8,0.00019178,2]
[373212082,1752907857028,-630.59,0.00019178,2]
[373212084,1752907857037,-460.0,0.00019178,2]
[373212086,1752907857047,-460.0,0.00019178,2]
[373212088,1752907857057,-2194.67,0.00019178,2]
[373212090,1752907857066,-460.0,0.00019178,2]
[373212092,1752907857076,-1136.64,0.00019178,2]
[373212094,1752907857089,-7435.29,0.00019178,2]
[373212096,1752907857100,-460.0,0.00019178,2]
[373212098,1752907857111,-251.41226243,0.00019178,2]
[373212100,1752907857120,-761.71,0.00019178,2]
[373212102,1752907857130,-684.42,0.00019178,2]
[373212104,1752907857139,-460.0,0.00019178,2]
[373212106,1752907857149,-727.96,0.00019178,2]
[373212108,1752907857158,-705.88,0.00019178,2]
[373212110,1752907857168,-460.0,0.00019178,2]
[373212112,1752907857177,-1405.27,0.00019178,2]
[373212114,1752907857187,-460.0,0.00019178,2]
[373212116,1752907857196,-2778.31,0.00019178,2]
[373212118,1752907857206,-677.34,0.00019178,2]
[373212120,1752907857215,-4383.08,0.00019178,2]
[373212122,1752907857229,-692.73,0.00019178,2]
[373212124,1752907857239,-460.0,0.00019178,2]
[373212126,1752907857248,-460.0,0.00019178,2]
[373212128,1752907857258,-608.40362532,0.00019178,2]
[373212130,1752907857269,-853.43,0.00019178,2]
[373212132,1752907857279,-561.34,0.00019178,2]
[373212134,1752907857288,-963.81,0.00019178,2]
[373212136,1752907857298,-607.51956945,0.00019178,2]
[373212138,1752907857310,-641.44,0.00019178,2]
[373212140,1752907857321,-460.0,0.00019178,2]
[373212143,1752907857332,-460.0,0.00019178,2]
[373212145,1752907857342,-529.8,0.00019178,2]
[373212146,1752907857351,-1547.66,0.00019178,2]
[373212149,1752907857363,-520.08,0.00019178,2]
[373212151,1752907857373,-2037.7,0.00019178,2]
[373212153,1752907857383,-2781.98,0.00019178,2]
[373212154,1752907857393,-460.0,0.00019178,2]
[373212156,1752907857403,-1565.73,0.00019178,2]
[373212159,1752907857412,-460.0,0.00019178,2]
[373212160,1752907857422,-5000.0,0.00019178,2]
[373212162,1752907857432,-5000.0,0.00019178,2]
[373212165,1752907857441,-171.15023,0.00019178,2]
[373212167,1752907857451,-2000.0,0.00019216,2]
[373212169,1752907857461,-1508.02044078,0.00019216,2]
[373212171,1752907857470,-2005.7834431,0.00019216,2]
[373212173,1752907857480,-302.9394212,0.00019278,2]
[373212174,1752907857490,-100000.0,0.00019329,2]
[373212176,1752907857501,-460.0,0.0001935,2]
[373212179,1752907857511,-460.0,0.0001935,2]
[373212181,1752907857520,-460.0,0.0001935,2]
[373212183,1752907857530,-5224.8904645,0.00019383,2]
[373212185,1752907857540,-900.0,0.00019389,2]
[373212187,1752907857549,-151.0,0.000194,2]
[373212189,1752907857558,-151.0,0.000194,2]
[373212191,1752907857568,-1730.99,0.000194,2]
[373212193,1752907857578,-500.0,0.00019451,2]
[373212195,1752907857588,-441.0,0.00019452,2]
[373212197,1752907857597,-460.0,0.00019452,2]
[373212199,1752907857607,-924.29,0.00019452,2]
[373212201,1752907857616,-460.0,0.00019452,2]
[373212203,1752907857625,-475.19,0.00019452,2]
[373212204,1752907857635,-460.0,0.00019452,2]
[373212206,1752907857644,-460.0,0.00019452,2]
[373212208,1752907857654,-460.0,0.00019452,2]
[373212211,1752907857664,-639.44,0.00019452,2]
[373212213,1752907857674,-460.0,0.00019452,2]
[373212215,1752907857683,-460.0,0.00019452,2]
[373212217,1752907857694,-460.0,0.00019452,2]
[373212219,1752907857703,-460.0,0.00019452,2]
[373212221,1752907857713,-460.0,0.00019452,2]
[373212223,1752907857723,-460.0,0.00019452,2]
[373212225,1752907857741,-460.0,0.00019452,2]
[373212227,1752907857755,-460.0,0.00019452,2]
[373212229,1752907857765,-460.0,0.00019452,2]
[373212231,1752907857773,-460.0,0.00019452,2]
[373212233,1752907857783,-460.0,0.00019452,2]
[373212235,1752907857792,-575.94,0.00019452,2]
[373212237,1752907857801,-460.0,0.00019452,2]
[373212239,1752907857810,-460.0,0.00019452,2]
[373212241,1752907857820,-508.05,0.00019452,2]
[373212243,1752907857830,-3168.93,0.00019452,2]
[373212245,1752907857840,-3148.5,0.00019452,2]
[373212247,1752907857850,-629.76,0.00019452,2]
[373212249,1752907857860,-792.23,0.00019452,2]
[373212251,1752907857869,-499.24,0.00019452,2]
[373212253,1752907857878,-588.5,0.00019452,2]
[373212255,1752907857887,-460.0,0.00019452,2]
[373212257,1752907857899,-819.5,0.00019452,2]
[373212269,1752907857994,-3198.65,0.00019452,2]
[373212271,1752907858005,-460.0,0.00019452,2]
[373212273,1752907858016,-1266.66,0.00019452,2]
[373212275,1752907858025,-1848.02,0.00019452,2]
[373212277,1752907858035,-579.8,0.00019452,2]
[373212279,1752907858045,-630.59,0.00019452,2]
[373212281,1752907858054,-460.0,0.00019452,2]
[373212283,1752907858064,-460.0,0.00019452,2]
[373212285,1752907858074,-2194.67,0.00019452,2]
[373212287,1752907858083,-460.0,0.00019452,2]
[373212289,1752907858093,-1136.64,0.00019452,2]
[373212291,1752907858102,-7435.29,0.00019452,2]
[373212293,1752907858112,-460.0,0.00019452,2]
[373212295,1752907858121,-761.71,0.00019452,2]
[373212297,1752907858131,-684.42,0.00019452,2]
[373212299,1752907858140,-460.0,0.00019452,2]
[373212302,1752907858150,-727.96,0.00019452,2]
[373212304,1752907858159,-705.88,0.00019452,2]
[373212306,1752907858170,-460.0,0.00019452,2]
[373212308,1752907858179,-1405.27,0.00019452,2]
[373212310,1752907858189,-460.0,0.00019452,2]
[373212312,1752907858199,-2778.31,0.00019452,2]
[373212314,1752907858209,-677.34,0.00019452,2]
[373212316,1752907858219,-4383.08,0.00019452,2]
[373212318,1752907858232,-692.73,0.00019452,2]
[373212320,1752907858242,-460.0,0.00019452,2]
[373212322,1752907858252,-460.0,0.00019452,2]
[373212324,1752907858262,-853.43,0.00019452,2]
[373212326,1752907858273,-561.34,0.00019452,2]
[373212328,1752907858282,-963.81,0.00019452,2]
[373212330,1752907858292,-641.44,0.00019452,2]
[373212332,1752907858302,-460.0,0.00019452,2]
[373212334,1752907858313,-460.0,0.00019452,2]
[373212336,1752907858322,-529.8,0.00019452,2]
[373212338,1752907858332,-1547.66,0.00019452,2]
[373212340,1752907858341,-520.08,0.00019452,2]
[373212342,1752907858351,-2037.7,0.00019452,2]
[373212345,1752907858360,-2781.98,0.00019452,2]
[373212347,1752907858370,-460.0,0.00019452,2]
[373212349,1752907858379,-1565.73,0.00019452,2]
[373212351,1752907858388,-500.0,0.00019462,2]
[373212353,1752907858398,-502.91265376,0.00019462,2]
[373212355,1752907858408,-500.0,0.00019462,2]
[373212357,1752907858418,-500.0,0.00019462,2]
[373212359,1752907858427,-500.0,0.00019462,2]
[373212361,1752907858437,-504.96427173,0.00019462,2]
[373212363,1752907858447,-500.0,0.00019462,2]
[373212365,1752907858456,-500.0,0.00019462,2]
[373212367,1752907858466,-500.0,0.00019462,2]
[373212369,1752907858476,-500.0,0.00019462,2]
[373212371,1752907858485,-503.29160989,0.00019462,2]
[373212373,1752907858494,-500.0,0.00019462,2]
[373212375,1752907858505,-302.9394212,0.00019467,2]
[373212377,1752907858515,-260.0,0.00019515,2]
[373212379,1752907858524,-500.0,0.00019521,2]
[373212381,1752907858534,-500.0,0.00019521,2]
[373212383,1752907858544,-500.0,0.00019546,2]
[373212385,1752907858554,-460.0,0.00019624,2]
[373212387,1752907858565,-460.0,0.00019624,2]
[373212389,1752907858575,-2351.0,0.00019631,2]
[373212391,1752907858585,-302.9394212,0.00019656,2]
[373212393,1752907858595,-5224.8904645,0.00019693,2]
[373212395,1752907858605,-151.0,0.000197,2]
[373212397,1752907858614,-500.0,0.00019725,2]
[373212399,1752907858624,-441.0,0.00019726,2]
[373212401,1752907858633,-472.049229,0.00019726,2]
[373212403,1752907858643,-924.29,0.00019726,2]
[373212405,1752907858653,-165.24546731,0.00019726,2]
[373212407,1752907858663,-475.19,0.00019726,2]
[373212409,1752907858673,-460.0,0.00019726,2]
[373212411,1752907858682,-460.0,0.00019726,2]
[373212413,1752907858692,-460.0,0.00019726,2]
[373212415,1752907858702,-639.44,0.00019726,2]
[373212418,1752907858711,-194.1,0.00019726,2]
[373212420,1752907858721,-460.0,0.00019726,2]
[373212422,1752907858730,-460.0,0.00019726,2]
[373212424,1752907858739,-460.0,0.00019726,2]
[373212426,1752907858749,-460.0,0.00019726,2]
[373212428,1752907858758,-460.0,0.00019726,2]
[373212430,1752907858767,-460.0,0.00019726,2]
[373212432,1752907858777,-460.0,0.00019726,2]
[373212434,1752907858786,-257.76349841,0.00019726,2]
[373212436,1752907858796,-460.0,0.00019726,2]
[373212438,1752907858805,-575.94,0.00019726,2]
[373212440,1752907858815,-460.0,0.00019726,2]
[373212442,1752907858824,-460.0,0.00019726,2]
[373212444,1752907858833,-508.05,0.00019726,2]
[373212446,1752907858842,-3168.93,0.00019726,2]
[373212448,1752907858852,-3148.5,0.00019726,2]
[373212450,1752907858861,-629.76,0.00019726,2]
[373212452,1752907858870,-792.23,0.00019726,2]
[373212454,1752907858880,-499.24,0.00019726,2]
[373212456,1752907858889,-588.5,0.00019726,2]
[373212458,1752907858898,-460.0,0.00019726,2]
[373212460,1752907858907,-819.5,0.00019726,2]
[373212461,1752907858916,-3198.65,0.00019726,2]
[373212463,1752907858925,-460.0,0.00019726,2]
[373212465,1752907858935,-1266.66,0.00019726,2]
[373212467,1752907858945,-1848.02,0.00019726,2]
[373212470,1752907858954,-579.8,0.00019726,2]
[373212472,1752907858963,-630.59,0.00019726,2]
[373212474,1752907858972,-460.0,0.00019726,2]
[373212476,1752907858982,-460.0,0.00019726,2]
[373212478,1752907858991,-2194.67,0.00019726,2]
[373212480,1752907859000,-499.35028916,0.00019726,2]
[373212482,1752907859010,-1136.64,0.00019726,2]
[373212484,1752907859019,-7435.29,0.00019726,2]
[373212485,1752907859028,-320.0656458,0.00019726,2]
[373212487,1752907859037,-761.71,0.00019726,2]
[373212490,1752907859047,-684.42,0.00019726,2]
[373212492,1752907859056,-460.0,0.00019726,2]
[373212494,1752907859065,-727.96,0.00019726,2]
[373212495,1752907859075,-705.88,0.00019726,2]
[373212497,1752907859084,-460.0,0.00019726,2]
[373212499,1752907859093,-1405.27,0.00019726,2]
[373212501,1752907859103,-460.0,0.00019726,2]
[373212503,1752907859112,-677.34,0.00019726,2]
[373212505,1752907859121,-2778.31,0.00019726,2]
[373212507,1752907859131,-4383.08,0.00019726,2]
[373212509,1752907859140,-692.73,0.00019726,2]
[373212511,1752907859150,-460.0,0.00019726,2]
[373212513,1752907859159,-460.0,0.00019726,2]
[373212515,1752907859168,-853.43,0.00019726,2]
[373212517,1752907859178,-561.34,0.00019726,2]
[373212519,1752907859189,-963.81,0.00019726,2]
[373212521,1752907859198,-641.44,0.00019726,2]
[373212523,1752907859208,-460.0,0.00019726,2]
[373212525,1752907859218,-460.0,0.00019726,2]
[373212527,1752907859231,-529.8,0.00019726,2]
[373212528,1752907859240,-1547.66,0.00019726,2]